fUSD/lending_fUSD_20250226
["ID","MTS","AMOUNT","RATE_DAILY","PERIOD"]
[354487351,1740528646164,-1356.27,0.00046575,120]
[354487353,1740528646176,-1417.31,0.00046575,120]
[354487355,1740528646186,-1150.43,0.00046575,120]
[354487358,1740528646197,-2099.85,0.00046575,120]
[354487360,1740528646209,-500.0,0.00046575,120]
[354487362,1740528646219,-500.0,0.00046575,120]
[354487364,1740528646230,-500.0,0.00046575,120]
[354487366,1740528646244,-500.0,0.00046575,120]
[354487368,1740528646256,-829.78,0.00046575,120]
[354487370,1740528646267,-672.87,0.00046575,120]
[354487373,1740528646278,-1660.93,0.00046575,120]
[354487375,1740528646289,-500.0,0.00046575,120]
[354487377,1740528646299,-563.97954987,0.00046575,120]
[354487379,1740528646310,-284.930487,0.00046575,120]
[354487381,1740528646321,-500.0,0.00046575,120]
[354487383,1740528646332,-528.7,0.00046575,120]
[354487386,1740528646343,-631.87,0.00046575,120]
[354487388,1740528646354,-500.0,0.00046575,120]
[354487390,1740528646365,-500.0,0.00046575,120]
[354487392,1740528646375,-1483.41,0.00046575,120]
[354487394,1740528646387,-500.0,0.00046575,120]
[354487396,1740528646399,-1902.81,0.00046575,120]
[354487399,1740528646410,-571.76,0.00046575,120]
[354487400,1740528646422,-1270.05,0.00046575,120]
[354487401,1740528646433,-788.39,0.00046575,120]
[354487402,1740528646444,-597.39042359,0.00046575,120]
[354487403,1740528646454,-500.0,0.00046575,120]
[354487407,1740528647038,-500.0,0.00046575,120]
[354487408,1740528647064,-500.0,0.00046575,120]
[354487409,1740528647082,-500.0,0.00046575,120]
[354487410,1740528647092,-3240.67,0.00046575,120]
[354487411,1740528647102,-2698.13,0.00046575,120]
[354487412,1740528647111,-1525.73,0.00046575,120]
[354487413,1740528647121,-191.798475,0.00046575,120]
[354487414,1740528647131,-500.0,0.00046575,120]
[354487415,1740528647141,-551.73,0.00046575,120]
[354487416,1740528647150,-607.66,0.00046575,120]
[354487417,1740528647160,-500.0,0.00046575,120]
[354487418,1740528647170,-500.0,0.00046575,120]
[354487419,1740528647180,-682.82,0.00046575,120]
[354487420,1740528647190,-2530.6,0.00046575,120]
[354487421,1740528647199,-1375.43,0.00046575,120]
[354487422,1740528647210,-500.0,0.00046575,120]
[354487423,1740528647220,-153.625135,0.00046575,120]
[354487424,1740528647230,-500.0,0.00046575,120]
[354487425,1740528647241,-500.0,0.00046575,120]
[354487426,1740528647250,-519.07,0.00046575,120]
[354487427,1740528647260,-200.0,0.00046575,7]
[354487428,1740528647270,-1811.07,0.00046575,120]
[354487429,1740528647281,-2736.65,0.00046575,120]
[354487430,1740528647290,-1112.54,0.00046575,120]
[354487431,1740528647300,-225.110582,0.00046575,120]
[354487432,1740528647310,-500.0,0.00046575,120]
[354487433,1740528647319,-500.0,0.00046575,120]
[354487434,1740528647329,-500.0,0.00046575,120]
[354487435,1740528647338,-561.36,0.00046575,120]
[354487436,1740528647349,-500.0,0.00046575,120]
[354487437,1740528647359,-500.0,0.00046575,120]
[354487438,1740528647368,-689.62,0.00046575,120]
[354487439,1740528647378,-500.0,0.00046575,120]
[354487440,1740528647387,-1334.32,0.00046575,120]
[354487441,1740528647396,-1826.76,0.00046575,120]
[354487442,1740528647406,-696.61,0.00046575,120]
[354487443,1740528647415,-2155.1,0.00046575,120]
[354487444,1740528647425,-2411.34,0.00046575,120]
[354487445,1740528647435,-500.0,0.00046575,120]
[354487446,1740528647444,-500.0,0.00046575,120]
[354487447,1740528647453,-500.0,0.00046575,120]
[354487448,1740528647463,-500.0,0.00046575,120]
[354487449,1740528647472,-500.0,0.00046575,120]
[354487450,1740528647482,-831.17,0.00046575,120]
[354487451,1740528647491,-500.0,0.00046575,120]
[354487452,1740528647502,-1971.06,0.00046575,120]
[354487453,1740528647512,-164.70752923,0.00046575,120]
[354487454,1740528647522,-1288.96,0.00046575,120]
[354487455,1740528647533,-987.33,0.00046575,120]
[354487456,1740528647543,-500.0,0.00046575,120]
[354487457,1740528647552,-500.0,0.00046575,120]
[354487458,1740528647563,-1908.05,0.00046575,120]
[354487459,1740528647574,-802.7,0.00046575,120]
[354487460,1740528647584,-500.0,0.00046575,120]
[354487461,1740528647594,-500.0,0.00046575,120]
[354487462,1740528647604,-500.0,0.00046575,120]
[354487463,1740528647614,-822.98,0.00046575,120]
[354487464,1740528647624,-500.0,0.00046575,120]
[354487465,1740528647634,-500.0,0.00046575,120]
[354487466,1740528647645,-1443.39,0.00046575,120]
[354487467,1740528647655,-2071.91,0.00046575,120]
[354487468,1740528647666,-1485.21,0.00046575,120]
[354487469,1740528647676,-500.0,0.00046575,120]
[354487470,1740528647686,-500.0,0.00046575,120]
[354487471,1740528647696,-554.53,0.00046575,120]
[354487472,1740528647706,-787.59,0.00046575,120]
[354487473,1740528647716,-1345.01,0.00046575,120]
[354487474,1740528647727,-500.0,0.00046575,120]
[354487475,1740528647737,-766.94,0.00046575,120]
[354487476,1740528647748,-500.0,0.00046575,120]
[354487477,1740528647763,-500.0,0.00046575,7]
[354487478,1740528647774,-1376.68,0.00046575,120]
[354487479,1740528647785,-500.0,0.00046575,120]
[354487480,1740528647795,-500.0,0.00046575,120]
[354487481,1740528647805,-804.69,0.00046575,120]
[354487482,1740528647815,-1413.44,0.00046575,120]
[354487483,1740528647824,-689.03,0.00046575,120]
[354487484,1740528647835,-500.0,0.00046575,120]
[354487485,1740528647845,-841.64,0.00046575,120]
[354487486,1740528647854,-2648.78,0.00046575,120]
[354487487,1740528647864,-500.0,0.00046575,120]
[354487488,1740528647874,-635.67,0.00046575,120]
[354487489,1740528647883,-490.56982829,0.00046575,120]
[354487490,1740528647893,-840.89,0.00046575,120]
[354487491,1740528647904,-1566.95,0.00046575,120]
[354487492,1740528647914,-500.0,0.00046575,120]
[354487493,1740528647924,-500.0,0.00046575,120]
[354487494,1740528647933,-500.0,0.00046575,120]
[354487495,1740528647943,-797.38,0.00046575,120]
[354487496,1740528647953,-1963.7,0.00046575,120]
[354487497,1740528647963,-627.68,0.00046575,120]
[354487498,1740528647972,-500.0,0.00046575,120]
[354487499,1740528647982,-500.0,0.00046575,120]
[354487500,1740528647991,-1015.97,0.00046575,120]
[354487501,1740528648003,-564.76,0.00046575,120]
[354487502,1740528648013,-1153.02,0.00046575,120]
[354487503,1740528648023,-500.0,0.00046575,120]
[354487504,1740528648034,-2104.77,0.00046575,120]
[354487505,1740528648044,-884.78,0.00046575,120]
[354487506,1740528648054,-500.0,0.00046575,120]
[354487507,1740528648064,-500.0,0.00046575,120]
[354487508,1740528648075,-2568.31,0.00046575,120]
[354487509,1740528648085,-4836.13,0.00046575,120]
[354487510,1740528648095,-727.71,0.00046575,120]
[354487511,1740528648106,-554.4,0.00046575,120]
[354487512,1740528648115,-4435.43,0.00046575,120]
[354487513,1740528648125,-500.0,0.00046575,120]
[354487514,1740528648135,-642.54,0.00046575,120]
[354487515,1740528648145,-1801.97,0.00046575,120]
[354487516,1740528648155,-580.38,0.00046575,120]
[354487517,1740528648165,-500.0,0.00046575,120]
[354487518,1740528648175,-520.27,0.00046575,120]
[354487519,1740528648185,-770.38,0.00046575,120]
[354487520,1740528648195,-1592.2,0.00046575,7]
[354487521,1740528648206,-500.0,0.00046575,120]
[354487522,1740528648215,-500.0,0.00046575,120]
[354487523,1740528648225,-1547.16,0.00046575,120]
[354487524,1740528648235,-1541.42,0.00046575,120]
[354487525,1740528648244,-626.87,0.00046575,120]
[354487526,1740528648255,-500.0,0.00046575,120]
[354487527,1740528648265,-174.84,0.00046575,120]
[354487528,1740528648276,-597.07,0.00046575,120]
[354487529,1740528648286,-500.0,0.00046575,120]
[354487530,1740528648296,-1745.28,0.00046575,120]
[354487531,1740528648305,-2670.5,0.00046575,120]
[354487532,1740528648316,-731.4,0.00046575,120]
[354487533,1740528648325,-387.15524195,0.00046575,120]
[354487534,1740528648335,-2715.31,0.00046575,120]
[354487535,1740528648346,-729.64,0.00046575,120]
[354487536,1740528648357,-647.95,0.00046575,40]
[354487537,1740528648367,-2446.09,0.00046575,120]
[354487538,1740528648378,-1330.74,0.00046575,120]
[354487539,1740528648388,-1399.65,0.00046575,120]
[354487540,1740528648399,-560.44,0.00046575,120]
[354487541,1740528648409,-990.01,0.00046575,120]
[354487542,1740528648418,-1064.05,0.00046575,120]
[354487543,1740528648428,-500.0,0.00046575,120]
[354487544,1740528648441,-3800.0,0.00046575,120]
[354487545,1740528648451,-1732.59,0.00046575,120]
[354487546,1740528648461,-1345.68,0.00046575,120]
[354487547,1740528648471,-500.0,0.00046575,120]
[354487548,1740528648481,-4413.97,0.00046575,120]
[354487549,1740528648491,-1318.02,0.00046575,120]
[354487550,1740528648500,-528.94866196,0.00046575,120]
[354487551,1740528648511,-1651.9,0.00046575,120]
[354487552,1740528648520,-3477.91,0.00046575,120]
[354487553,1740528648530,-504.92617411,0.00046575,120]
[354487554,1740528648540,-2162.65,0.00046575,120]
[354487555,1740528648549,-500.0,0.00046575,120]
[354487556,1740528648563,-500.0,0.00046575,120]
[354487557,1740528648573,-955.19,0.00046575,120]
[354487558,1740528648583,-500.0,0.00046575,120]
[354487559,1740528648593,-500.0,0.00046575,120]
[354487560,1740528648604,-500.0,0.00046575,120]
[354487561,1740528648613,-500.0,0.00046575,120]
[354487562,1740528648623,-1303.03,0.00046575,120]
[354487563,1740528648633,-500.0,0.00046575,120]
[354487564,1740528648643,-1895.19,0.00046575,120]
[354487565,1740528648684,-1347.67,0.00046575,120]
[354487566,1740528648695,-3120.89,0.00046575,120]
[354487567,1740528648705,-500.0,0.00046575,120]
[354487568,1740528648715,-2644.82,0.00046575,120]
[354487569,1740528648725,-1960.65,0.00046575,2]
[354487570,1740528648735,-2814.86,0.00046575,120]
[354487571,1740528648746,-510.35845198,0.00046575,120]
[354487572,1740528648758,-500.0,0.00046575,120]
[354487573,1740528648768,-500.0,0.00046575,120]
[354487574,1740528648778,-500.0,0.00046575,120]
[354487575,1740528648787,-2542.05,0.00046575,120]
[354487576,1740528648798,-2162.48,0.00046575,120]
[354487577,1740528648807,-923.37,0.00046575,120]
[354487578,1740528648817,-734.76,0.00046575,120]
[354487579,1740528648827,-500.0,0.00046575,120]
[354487580,1740528648837,-1531.37,0.00046575,120]
[354487581,1740528648847,-2484.16,0.00046575,120]
[354487582,1740528648857,-5531.5,0.00046575,120]
[354487583,1740528648866,-1155.52,0.00046575,120]
[354487584,1740528648876,-721.36,0.00046575,120]
[354487585,1740528648886,-760.71,0.00046575,120]
[354487586,1740528648895,-500.0,0.00046575,120]
[354487587,1740528648906,-500.0,0.00046575,120]
[354487588,1740528648916,-500.0,0.00046575,120]
[354487589,1740528648925,-500.0,0.00046575,120]
[354487590,1740528648935,-841.62,0.00046575,120]
[354487591,1740528648944,-813.39,0.00046575,120]
[354487592,1740528648954,-879.7,0.00046575,120]
[354487593,1740528648963,-554.37,0.00046575,120]
[354487594,1740528648973,-2478.61,0.00046575,120]
[354487595,1740528648981,-512.80488222,0.00046575,120]
[354487596,1740528648991,-842.69,0.00046575,120]
[354487597,1740528649000,-628.58,0.00046575,120]
[354487598,1740528649010,-500.0,0.00046575,120]
[354487599,1740528649020,-802.56,0.00046575,120]
[354487600,1740528649030,-666.74,0.00046575,120]
[354487601,1740528649039,-2031.7,0.00046575,120]
[354487602,1740528649049,-797.41,0.00046575,120]
[354487603,1740528649059,-4212.33,0.00046575,120]
[354487604,1740528649068,-957.96,0.00046575,120]
[354487605,1740528649078,-504.72,0.00046575,120]
[354487606,1740528649088,-6958.76,0.00046575,120]
[354487607,1740528649097,-500.0,0.00046575,120]
[354487608,1740528649107,-2153.44,0.00046575,120]
[354487609,1740528649116,-1299.56,0.00046575,120]
[354487610,1740528649125,-710.97,0.00046575,120]
[354487611,1740528649135,-2539.96,0.00046575,120]
[354487612,1740528649144,-1764.5,0.00046575,120]
[354487613,1740528649154,-500.0,0.00046575,120]
[354487614,1740528649163,-500.0,0.00046575,120]
[354487615,1740528649173,-574.07,0.00046575,120]
[354487616,1740528649183,-580.24,0.00046575,120]
[354487617,1740528649193,-500.0,0.00046575,120]
[354487618,1740528649206,-3525.07,0.00046575,120]
[354487619,1740528649216,-927.56,0.00046575,120]
[354487620,1740528649226,-782.43,0.00046575,120]
[354487621,1740528649236,-5231.81,0.00046575,120]
[354487622,1740528649246,-12648.42,0.00046575,120]
[354487623,1740528649256,-1132.9,0.00046575,120]
[354487624,1740528649266,-500.0,0.00046575,120]
[354487625,1740528649277,-642.74,0.00046575,120]
[354487626,1740528649287,-500.0,0.00046575,120]
[354487627,1740528649297,-500.0,0.00046575,120]
[354487628,1740528649309,-1633.3,0.00046575,120]
[354487629,1740528649318,-1107.33,0.00046575,120]
[354487630,1740528649327,-500.0,0.00046575,120]
[354487631,1740528649337,-1107.33,0.00046575,120]
[354487632,1740528649347,-500.0,0.00046575,120]
[354487633,1740528649357,-758.33,0.00046575,120]
[354487634,1740528649371,-1107.33,0.00046575,120]
[354487635,1740528649381,-1107.33,0.00046575,120]
[354487636,1740528649390,-500.0,0.00046575,120]
[354487637,1740528649399,-500.0,0.00046575,120]
[354487638,1740528649408,-2380.44,0.00046575,120]
[354487639,1740528649419,-1719.93,0.00046575,120]
[354487640,1740528649429,-500.0,0.00046575,120]
[354487641,1740528649438,-500.0,0.00046575,120]
[354487642,1740528649448,-2663.94,0.00046575,120]
[354487643,1740528649457,-504.47110512,0.00046575,120]
[354487644,1740528649466,-1070.81,0.00046575,120]
[354487645,1740528649475,-3252.05,0.00046575,120]
[354487646,1740528649484,-1786.0,0.00046575,20]
[354487647,1740528649494,-502.46461169,0.00046575,120]
[354487648,1740528649564,-1951.66,0.00046575,120]
[354487649,1740528649575,-3814.4,0.00046575,120]
[354487650,1740528649585,-500.0,0.00046575,120]
[354487651,1740528649595,-504.55841184,0.00046575,120]
[354487652,1740528649604,-500.0,0.00046575,120]
[354487653,1740528649614,-4673.13,0.00046575,120]
[354487654,1740528649624,-1791.75,0.00046575,120]
[354487655,1740528649633,-513.90069481,0.00046575,120]
[354487656,1740528649644,-500.0,0.00046575,120]
[354487657,1740528649654,-1375.09,0.00046575,120]
[354487658,1740528649663,-415.8069124,0.00046575,120]
[354487659,1740528649672,-5641.87,0.00046575,120]
[354487660,1740528649682,-1361.72,0.00046575,120]
[354487661,1740528649691,-2067.31,0.00046575,120]
[354487662,1740528649701,-305.51401214,0.00046575,120]
[354487663,1740528649711,-500.0,0.00046575,120]
[354487664,1740528649720,-1012.49,0.00046575,120]
[354487665,1740528649729,-500.0,0.00046575,120]
[354487666,1740528649739,-500.0,0.00046575,120]
[354487667,1740528649748,-500.0,0.00046575,120]
[354487668,1740528649759,-648.81226449,0.00046575,120]
[354487669,1740528649769,-2727.6,0.00046575,120]
[354487670,1740528649778,-500.0,0.00046575,120]
[354487671,1740528649788,-2057.14,0.00046575,120]
[354487672,1740528649797,-522.44,0.00046575,120]
[354487673,1740528649806,-2926.31,0.00046575,120]
[354487674,1740528649815,-500.0,0.00046575,120]
[354487675,1740528649826,-500.0,0.00046575,120]
[354487676,1740528649835,-500.0,0.00046575,120]
[354487677,1740528649845,-3391.79,0.00046575,120]
[354487678,1740528649855,-500.0,0.00046575,120]
[354487679,1740528649864,-500.0,0.00046575,120]
[354487680,1740528649875,-500.0,0.00046575,120]
[354487681,1740528649884,-3284.97,0.00046575,120]
[354487682,1740528649894,-4317.87,0.00046575,120]
[354487683,1740528649903,-1113.39,0.00046575,120]
[354487684,1740528649913,-2818.08,0.00046575,120]
[354487685,1740528649923,-3086.66,0.00046575,120]
[354487686,1740528649934,-500.0,0.00046575,120]
[354487687,1740528649943,-2401.9,0.00046575,120]
[354487688,1740528649952,-500.0,0.00046575,120]
[354487689,1740528649962,-500.0,0.00046575,120]
[354487690,1740528649971,-712.15,0.00046575,120]
[354487691,1740528649981,-500.0,0.00046575,120]
[354487692,1740528649991,-1459.73,0.00046575,120]
[354487693,1740528650001,-500.0,0.00046575,120]
[354487694,1740528650011,-661.5,0.00046575,120]
[354487695,1740528650021,-1040.28,0.00046575,120]
[354487696,1740528650031,-500.0,0.00046575,120]
[354487697,1740528650040,-3542.82,0.00046575,120]
[354487698,1740528650049,-4737.16,0.00046575,120]
[354487699,1740528650058,-1123.87,0.00046575,120]
[354487700,1740528650067,-2977.83,0.00046575,120]
[354487701,1740528650076,-520.39,0.00046575,120]
[354487702,1740528650085,-500.0,0.00046575,120]
[354487703,1740528650095,-524.88,0.00046575,120]
[354487704,1740528650104,-500.0,0.00046575,120]
[354487705,1740528650113,-500.0,0.00046575,120]
[354487706,1740528650123,-1797.74,0.00046575,120]
[354487707,1740528650133,-1474.45,0.00046575,120]
[354487708,1740528650142,-4445.56,0.00046575,120]
[354487709,1740528650154,-1112.4,0.00046575,120]
[354487710,1740528650164,-513.19760024,0.00046575,120]
[354487711,1740528650174,-500.0,0.00046575,120]
[354487712,1740528650184,-500.0,0.00046575,120]
[354487713,1740528650194,-4150.21,0.00046575,120]
[354487714,1740528650203,-4402.04,0.00046575,120]
[354487715,1740528650213,-500.0,0.00046575,120]
[354487716,1740528650223,-1000.0,0.00046575,120]
[354487717,1740528650232,-506.71582122,0.00046575,120]
[354487718,1740528650241,-619.84,0.00046575,120]
[354487719,1740528650250,-500.0,0.00046575,120]
[354487720,1740528650263,-787.38,0.00046575,120]
[354487721,1740528650272,-500.0,0.00046575,120]
[354487722,1740528650283,-500.0,0.00046575,120]
[354487723,1740528650293,-523.59031822,0.00046575,120]
[354487724,1740528650303,-4381.41,0.00046575,120]
[354487725,1740528650313,-3229.09,0.00046575,120]
[354487726,1740528650322,-5922.96,0.00046575,120]
[354487727,1740528650332,-3190.86,0.00046575,120]
[354487728,1740528650343,-2587.36,0.00046575,120]
[354487729,1740528650353,-500.0,0.00046575,120]
[354487730,1740528650365,-1717.51,0.00046575,120]
[354487731,1740528650374,-500.0,0.00046575,120]
[354487732,1740528650384,-500.0,0.00046575,120]
[354487733,1740528650393,-3866.35,0.00046575,120]
[354487734,1740528650403,-831.54,0.00046575,120]
[354487735,1740528650419,-2773.54,0.00046575,120]
[354487736,1740528650440,-817.17,0.00046575,120]
[354487737,1740528650452,-1969.84,0.00046575,120]
[354487738,1740528650463,-1653.06,0.00046575,120]
[354487739,1740528650474,-1355.05,0.00046575,120]
[354487740,1740528650485,-500.0,0.00046575,120]
[354487741,1740528650495,-500.0,0.00046575,120]
[354487742,1740528650508,-3825.14,0.00046575,120]
[354487743,1740528650517,-1529.42,0.00046575,120]
[354487744,1740528650527,-500.0,0.00046575,120]
[354487745,1740528650537,-2513.7,0.00046575,120]
[354487746,1740528650547,-698.34,0.00046575,120]
[354487747,1740528650557,-1686.55,0.00046575,120]
[354487748,1740528650569,-6617.28,0.00046575,120]
[354487749,1740528650579,-1366.37,0.00046575,120]
[354487750,1740528650588,-4243.37,0.00046575,120]
[354487751,1740528650597,-829.51,0.00046575,120]
[354487752,1740528650606,-516.68,0.00046575,120]
[354487753,1740528650617,-3210.74,0.00046575,120]
[354487754,1740528650626,-4494.18,0.00046575,120]
[354487755,1740528650636,-1604.63,0.00046575,120]
[354487756,1740528650646,-500.0,0.00046575,120]
[354487757,1740528650656,-1275.38,0.00046575,120]
[354487758,1740528650666,-3544.69,0.00046575,120]
[354487759,1740528650675,-1070.48,0.00046575,120]
[354487760,1740528650684,-501.42216958,0.00046575,120]
[354487761,1740528650693,-500.0,0.00046575,120]
[354487762,1740528650703,-5834.41,0.00046575,120]
[354487763,1740528650712,-2302.86,0.00046575,120]
[354487764,1740528650723,-1150.56,0.00046575,7]
[354487765,1740528650732,-500.0,0.00046575,120]
[354487766,1740528650743,-500.0,0.00046575,120]
[354487767,1740528650752,-4622.64,0.00046575,120]
[354487768,1740528650762,-5542.27,0.00046575,120]
[354487769,1740528650771,-500.0,0.00046575,120]
[354487770,1740528650780,-1998.5,0.00046575,120]
[354487771,1740528650790,-7440.36,0.00046575,100]
[354487772,1740528650799,-527.27745356,0.00046575,120]
[354487773,1740528650809,-1708.81,0.00046575,120]
[354487774,1740528650819,-1025.55,0.00046575,120]
[354487775,1740528650829,-500.0,0.00046575,120]
[354487776,1740528650838,-867.37,0.00046575,120]
[354487777,1740528650847,-3934.57,0.00046575,120]
[354487778,1740528650856,-500.0,0.00046575,120]
[354487779,1740528650866,-2685.44,0.00046575,120]
[354487780,1740528650875,-500.0,0.00046575,120]
[354487781,1740528650884,-511.01,0.00046575,120]
[354487782,1740528650893,-1362.8,0.00046575,120]
[354487783,1740528650903,-5753.49,0.00046575,120]
[354487784,1740528650912,-1113.24,0.00046575,120]
[354487785,1740528650921,-500.0,0.00046575,120]
[354487786,1740528650931,-600.0,0.00046575,120]
[354487787,1740528650940,-500.0,0.00046575,120]
[354487788,1740528650949,-500.0,0.00046575,120]
[354487789,1740528650958,-2422.18,0.00046575,120]
[354487790,1740528650967,-1226.28,0.00046575,120]
[354487791,1740528650976,-500.0,0.00046575,120]
[354487792,1740528650985,-500.0,0.00046575,120]
[354487793,1740528650994,-3029.05,0.00046575,120]
[354487794,1740528651004,-932.38,0.00046575,120]
[354487795,1740528651014,-500.0,0.00046575,120]
[354487796,1740528651023,-694.95,0.00046575,120]
[354487797,1740528651032,-498.84734144,0.00046575,120]
[354487798,1740528651043,-1025.16,0.00046575,120]
[354487799,1740528651052,-5415.12,0.00046575,120]
[354487800,1740528651063,-1624.17,0.00046575,120]
[354487801,1740528651072,-500.0,0.00046575,120]
[354487802,1740528651082,-500.0,0.00046575,120]
[354487803,1740528651091,-500.0,0.00046575,120]
[354487804,1740528651100,-500.0,0.00046575,120]
[354487805,1740528651110,-500.0,0.00046575,120]
[354487806,1740528651120,-1855.31,0.00046575,120]
[354487807,1740528651129,-1684.88,0.00046575,120]
[354487808,1740528651139,-482.61499369,0.00046575,120]
[354487809,1740528651148,-4941.22,0.00046575,120]
[354487810,1740528651157,-583.02,0.00046575,120]
[354487811,1740528651166,-4041.14,0.00046575,120]
[354487812,1740528651176,-595.61,0.00046575,120]
[354487813,1740528651185,-4442.49,0.00046575,120]
[354487814,1740528651195,-500.0,0.00046575,120]
[354487815,1740528651205,-3346.23,0.00046575,120]
[354487816,1740528651215,-500.0,0.00046575,120]
[354487817,1740528651224,-500.0,0.00046575,120]
[354487818,1740528651233,-2805.31,0.00046575,120]
[354487819,1740528651243,-150.0,0.00046575,120]
[354487820,1740528651252,-500.0,0.00046575,120]
[354487821,1740528651262,-500.0,0.00046575,30]
[354487822,1740528651272,-1215.18,0.00046575,120]
[354487823,1740528651281,-4035.55,0.00046575,120]
[354487824,1740528651291,-295.56995094,0.00046579,120]
[354487825,1740528651300,-2048.45770058,0.0004659,4]
[354487826,1740528651310,-2000.0,0.000466,17]
[354487827,1740528651319,-1000.0,0.00046602,120]
[354487828,1740528651329,-295.56995094,0.00046602,120]
[354487829,1740528651338,-295.56995094,0.00046625,120]
[354487830,1740528651349,-1000.0,0.00046629,120]
[354487831,1740528651358,-1845.36290202,0.00046639,15]
[354487832,1740528651367,-295.56995094,0.00046648,120]
[354487833,1740528651376,-1000.0,0.00046656,120]
[354487834,1740528651387,-295.56995094,0.00046671,120]
[354487835,1740528651397,-1000.0,0.00046684,120]
[354487836,1740528651407,-295.56995094,0.00046694,120]
[354487837,1740528651417,-2700.0,0.000467,17]
[354487838,1740528651426,-928.66,0.00046711,120]
[354487839,1740528651436,-295.56995094,0.00046717,120]
[354487840,1740528651445,-1845.36290202,0.00046726,15]
[354487841,1740528651455,-295.56995094,0.0004674,120]
[354487842,1740528651464,-295.56995094,0.00046763,120]
[354487843,1740528651474,-217.26921943,0.00046765,20]
[354487844,1740528651483,-295.56995094,0.00046786,120]
[354487845,1740528651492,-8193.83080232,0.00046789,4]
[354487846,1740528651502,-500.0,0.00046798,120]
[354487847,1740528651513,-2540.15,0.00046799,120]
[354487848,1740528651522,-4271.67,0.00046799,120]
[354487849,1740528651532,-1594.68,0.00046799,120]
[354487850,1740528651543,-4139.2,0.00046799,120]
[354487851,1740528651554,-500.0,0.00046799,120]
[354487852,1740528651566,-4814.94,0.00046799,120]
[354487853,1740528651577,-2942.65,0.00046799,120]
[354487854,1740528651587,-2341.43,0.00046799,120]
[354487855,1740528651597,-500.0,0.00046799,120]
[354487856,1740528651608,-1051.96,0.00046799,120]
[354487857,1740528651617,-1124.75,0.00046799,120]
[354487858,1740528651627,-2897.55078484,0.00046799,120]
[354487859,1740528652077,-2111.64921516,0.00046799,120]
[354487860,1740528652087,-3219.23,0.00046799,120]
[354487861,1740528652096,-560.61,0.00046799,120]
[354487862,1740528652105,-1106.75552584,0.00046799,120]
[354487863,1740528652118,-117.74447416,0.00046799,120]
[354487864,1740528652131,-2615.622355,0.00046799,120]
[354487865,1740528652144,-2808.537645,0.00046799,120]
[354487866,1740528652154,-3400.0,0.000468,17]
[354487867,1740528652163,-295.56995094,0.00046808,120]
[354487868,1740528652174,-1845.36290202,0.00046813,15]
[354487869,1740528652183,-2048.45770058,0.00046828,4]
[354487870,1740528652193,-295.56995094,0.00046831,120]
[354487871,1740528652203,-1107.33,0.00046838,120]
[354487872,1740528652213,-10242.2885029,0.00046839,4]
[354487873,1740528652223,-1107.33,0.00046848,120]
[354487874,1740528652233,-994.37634762,0.00046848,120]
[354487875,1740528652244,-112.95365238,0.00046848,120]
[354487876,1740528652254,-523.92452762,0.00046848,120]
[354487877,1740528652270,-583.40547238,0.00046848,120]
[354487878,1740528652281,-22.30265027,0.00046848,120]
[354487879,1740528652300,-380.51400008,0.00046848,120]